[Event "Portugal Open 2020"]
[Site "Lisbon"]
[Date "2020.02.01"]
[Round "9.26"]
[White "Veiga, Jose Francisco R P N"]
[Black "Maloberti, David"]
[Result "0-1"]
[ECO "C08"]
[WhiteElo "2312"]
[BlackElo "2017"]
[Annotator "NA"]
[PlyCount "62"]
[EventDate "2020.01.25"]
[EventType "swiss"]
[EventCountry "POR"]
[SourceTitle "playchess.com"]
[Source "ChessBase"]
[SourceQuality "1"]
[TimeControl "5400+30"]

1. e4 {[%emt 0:09:55]} e6 {[%emt 0:00:00]} 2. d4 {[%emt 0:00:19]} d5 {[%emt 0:00:00]} 3. Nd2 {[%emt 0:00:11]} c5 {[%emt 0:00:00]} 4. exd5 {[%emt 0:00:05]} exd5 {[%emt 0:00:00]} 5. Ngf3 {[%emt 0:00:10]} Nf6 {[%emt 0:00:03]} 6. Bb5+ {[%emt 0:00:19]} Bd7 {[%emt 0:00:06]} 7. Qe2+ {[%emt 0:11:07]} Be7 {[%emt 0:00:05]} 8. Ne5 {[%emt 0:00:42]} O-O {[%emt 0:06:39]} 9. Nxd7 {[%emt 0:00:30]} Nbxd7 {[%emt 0:00:22]} 10. dxc5 {[%emt 0:00:08]} Bxc5 {[%emt 0:04:37]} 11. O-O {[%emt 0:00:28]} Re8 {[%emt 0:00:03]} 12. Qd1 {[%emt 0:01:49]} a6 {[%emt 0:00:04]} 13. Be2 {[%emt 0:00:48]} Qe7 {[%emt 0:04:49]} 14. Bd3 {[%emt 0:04:59]} Ne4 {[%emt 0:10:16]} 15. Nb3 {[%emt 0:01:40]} Bb6 $2 {[%emt 0:03:59]} ({Don't do} 15... Bxf2+ 16. Kh1 $19) (15... Nxf2 $19 16. Rxf2 Bxf2+ 17. Kxf2 Qh4+ {[%mdl 64] Double Attack} 18. Kf1 Qxh2) 16. c3 {[%emt 0:05:59]} Bxf2+ {[%emt 0:04:04]} 17. Rxf2 $2 {[%emt 0:02:04]} (17. Kh1 Ba7 18. Nd4) 17... Nxf2 {[%emt 0:00:06]} 18. Kxf2 $19 {[%emt 0:00:04]} Qh4+ {[%emt 0:00:10]} 19. Kf1 {[%emt 0:00:13]} Qxh2 {[%emt 0:00:13]} 20. Bd2 {[%emt 0:01:15]} Re6 {[%emt 0:02:27]} 21. Be2 {[%emt 0:22:52]} Rf6+ {[%emt 0:13:24]} 22. Bf3 {[%emt 0:00:06]} Ne5 {[%emt 0:00:05]} 23. Nd4 {[%emt 0:00:34]} Re8 {[%emt 0:03:00]} 24. Be3 {[%emt 0:08:37]} Nxf3 {[%emt 0:00:19]} 25. Nxf3 {[%emt 0:00:10]} Rxe3 {[%emt 0:00:21]} 26. Qxd5 {[%emt 0:00:11]} Qd6 {[%emt 0:09:34]} 27. Qxb7 {[%emt 0:00:33]} h6 {[%emt 0:00:40]} 28. Kg1 {[%emt 0:05:52]} Rfxf3 {[%emt 0:00:19]} 29. gxf3 {[%emt 0:00:28]} Qg3+ {[%emt 0:00:04]} 30. Kh1 {[%emt 0:00:13]} Rxf3 {[%emt 0:02:08]} 31. Qb8+ {[%emt 0:00:23]} Qxb8 {[%emt 0:00:08]} 0-1

[Event "Portugal Open 2020"]
[Site "Lisbon"]
[Date "2020.02.01"]
[Round "9.27"]
[White "Chkhaidze, Nikoloz"]
[Black "Hulshof, Peter"]
[Result "1-0"]
[ECO "B06"]
[WhiteElo "2288"]
[BlackElo "2192"]
[Annotator "NA"]
[PlyCount "73"]
[EventDate "2020.01.25"]
[EventType "swiss"]
[EventCountry "POR"]
[SourceTitle "playchess.com"]
[Source "ChessBase"]
[SourceQuality "1"]
[TimeControl "5400+30"]

1. d4 {[%emt 0:03:39]} g6 {[%emt 0:00:18]} 2. e4 {[%emt 0:00:11]} Bg7 {[%emt 0:00:09]} 3. Nc3 {[%emt 0:00:06]} c6 {[%emt 0:00:23]} 4. f4 {[%emt 0:00:07]} d5 {[%emt 0:00:15]} 5. e5 {[%emt 0:00:02]} Nh6 {[%emt 0:00:40]} 6. Nf3 {[%emt 0:00:14]} f6 {[%emt 0:00:26]} 7. Be3 {[%emt 0:00:07]} O-O {[%emt 0:01:50]} 8. Qd2 {[%emt 0:00:04]} Bg4 {[%emt 0:02:37]} 9. Be2 {[%emt 0:00:24]} Nf5 {[%emt 0:01:58]} 10. Bf2 {[%emt 0:00:35]} Bh6 {[%emt 0:01:03]} 11. O-O-O {[%emt 0:27:31]} Bxf3 $16 {[%emt 0:23:38]} 12. Bxf3 {[%emt 0:01:36]} fxe5 {[%emt 0:00:58]} 13. dxe5 {[%emt 0:04:22]} e6 {[%emt 0:04:12]} 14. Kb1 {[%emt 0:24:56]} Nd7 {[%emt 0:03:48]} 15. Rhe1 {[%emt 0:00:06]} Nh4 {[%emt 0:06:24]} 16. Bxh4 {[%emt 0:02:11]} Qxh4 {[%emt 0:00:05]} 17. g3 {[%emt 0:00:13]} Qe7 {[%emt 0:00:10]} 18. Bg4 {[%emt 0:04:08]} Rfe8 {[%emt 0:10:27]} 19. h4 {[%emt 0:03:17]} b5 {[%emt 0:02:10]} 20. Qd3 {[%emt 0:14:14]} b4 {[%emt 0:05:32]} 21. Ne4 Nc5 {[%emt 0:02:26]} 22. Nxc5 {[%emt 0:02:04]} Qxc5 {[%emt 0:00:04]} 23. h5 {[%emt 0:00:15]} Kg7 {[%emt 0:02:32]} 24. hxg6 {[%emt 0:00:28]} hxg6 {[%emt 0:00:05]} 25. Rh1 {[%emt 0:00:39]} Qe7 {[%emt 0:01:04]} 26. Rh4 {[%emt 0:04:09]} Rh8 {[%emt 0:00:29]} 27. Rdh1 {[%emt 0:00:07]} a5 {[%emt 0:04:45]} 28. Qf1 {[%emt 0:00:20]} g5 {[%emt 0:04:10]} 29. Rh5 {[%emt 0:00:27]} gxf4 {[%emt 0:01:12]} 30. Qh3 {[%emt 0:01:32]} Qg5 {[%emt 0:03:16]} 31. Rxg5+ {[%emt 0:00:29]} Bxg5 {[%emt 0:00:05]} 32. Qg2 {[%emt 0:00:31]} Rxh1+ {[%emt 0:00:08]} 33. Qxh1 {[%emt 0:00:03]} fxg3 {[%emt 0:00:45]} 34. Qh5 {[%emt 0:01:15]} Bh6 {[%emt 0:01:30]} 35. Bxe6 {[%emt 0:01:35]} Rf8 {[%emt 0:00:09]} 36. a3 {[%emt 0:00:21]} bxa3 {[%emt 0:01:57]} 37. Bf5 {[%emt 0:00:34]} 1-0

[Event "Portugal Open 2020"]
[Site "Lisbon"]
[Date "2020.02.01"]
[Round "9.28"]
[White "Grabuzova, Tatiana"]
[Black "Correia, Mario"]
[Result "1/2-1/2"]
[ECO "E06"]
[WhiteElo "2284"]
[BlackElo "2133"]
[Annotator "NA"]
[PlyCount "97"]
[EventDate "2020.01.25"]
[EventType "swiss"]
[EventCountry "POR"]
[SourceTitle "playchess.com"]
[Source "ChessBase"]
[SourceQuality "1"]
[TimeControl "5400+30"]

1. d4 {[%emt 0:00:00]} Nf6 {[%emt 0:00:00]} 2. c4 {[%emt 0:00:00]} e6 {[%emt 0:00:00]} 3. g3 {[%emt 0:00:00]} d5 {[%emt 0:00:00]} 4. Nf3 {[%emt 0:00:35]} Be7 {[%emt 0:00:24]} 5. Bg2 {[%emt 0:00:08]} O-O {[%emt 0:00:09]} 6. Nc3 {[%emt 0:00:42]} c6 {[%emt 0:00:08]} 7. O-O {[%emt 0:01:12]} Nbd7 {[%emt 0:00:18]} 8. Qc2 {[%emt 0:07:58]} b6 {[%emt 0:00:33]} 9. Rd1 {[%emt 0:03:58]} Bb7 {[%emt 0:00:23]} 10. b3 {[%emt 0:02:52]} Rc8 {[%emt 0:03:05]} 11. e4 {[%emt 0:00:32]} dxe4 {[%emt 0:02:49]} 12. Nxe4 {[%emt 0:00:11] E08: Closed Catalan: Main Line: 7 Qc2} h6 {[%emt 0:00:05]} 13. Bf4 {[%emt 0:20:18]} Nxe4 {[%emt 0:03:09]} 14. Qxe4 {[%emt 0:00:47]} Nf6 {[%emt 0:00:08]} 15. Qc2 {[%emt 0:01:21]} Bd6 {[%emt 0:00:55]} 16. Bxd6 {[%emt 0:02:49]} Qxd6 {[%emt 0:00:10]} 17. c5 {[%emt 0:00:02] [#]} Qc7 $146 {[%emt 0:04:05]} ({Predecessor:} 17... bxc5 18. dxc5 Qc7 19. Nd2 Rfd8 20. Nc4 Rxd1+ 21. Rxd1 Rd8 22. b4 Rxd1+ 23. Qxd1 Nd5 {1-0 (63) Konopka,M (2410)-Kalivoda,J (2210) Czechia 1997}) 18. Ne5 {[%emt 0:05:05]} bxc5 {[%emt 0:12:15]} 19. Qxc5 {[%emt 0:00:16]} Qb6 {[%emt 0:00:07]} 20. Qxb6 {[%emt 0:05:19]} axb6 {[%emt 0:00:09]} 21. Nc4 {[%emt 0:00:35]} Nd5 {[%emt 0:05:51]} (21... b5 $16) 22. Bxd5 {[%emt 0:02:23]} cxd5 {[%emt 0:01:14]} 23. Nxb6 {[%emt 0:00:06]} Rc6 $18 {[%emt 0:02:35]} 24. Nd7 {[%emt 0:00:33]} Ra8 {[%emt 0:01:43]} 25. Nc5 {[%emt 0:01:36]} Ba6 {[%emt 0:00:07]} 26. Rd2 {[%emt 0:00:50]} f6 {[%emt 0:01:54]} 27. b4 {[%emt 0:03:54]} Bc4 {[%emt 0:00:27]} 28. a4 {[%emt 0:01:01]} e5 {[%emt 0:00:24]} 29. b5 {[%emt 0:01:56]} Bxb5 {[%emt 0:00:30]} 30. a5 {[%emt 0:05:53]} Bc4 {[%emt 0:03:11]} 31. Nd3 {[%emt 0:00:46]} Rca6 {[%emt 0:00:49]} 32. dxe5 {[%emt 0:01:54]} fxe5 {[%emt 0:00:14]} 33. Nxe5 {[%emt 0:00:20]} Rxa5 {[%emt 0:00:09]} 34. Rxa5 {[%emt 0:02:44]} Rxa5 {[%emt 0:00:08]} 35. Rb2 {[%emt 0:03:48]} Bb5 {[%emt 0:10:02]} 36. Rc2 {[%emt 0:00:23]} Ra1+ {[%emt 0:04:42]} 37. Kg2 {[%emt 0:00:06]} Re1 {[%emt 0:00:37]} 38. f4 {[%emt 0:03:41]} d4 {[%emt 0:00:55]} 39. h4 {[%emt 0:06:30]} Kf8 {[%emt 0:04:18]} 40. Rd2 {[%emt 0:01:26]} Re2+ {[%emt 0:01:37]} 41. Rxe2 {[%emt 0:00:12]} Bxe2 {[%emt 0:00:08]} 42. Kf2 {[%emt 0:00:06]} Bb5 {[%emt 0:00:04]} 43. Kf3 {[%emt 0:01:27]} Ke7 {[%emt 0:03:32]} 44. Ke4 {[%emt 0:00:30]} Kf6 {[%emt 0:02:03]} 45. g4 {[%emt 0:02:58]} Be2 {[%emt 0:02:35]} 46. Kxd4 {[%emt 0:03:07]} Bxg4 {[%emt 0:00:22]} 47. Nxg4+ {[%emt 0:00:10]} Kf5 {[%emt 0:00:06]} 48. Nxh6+ {[%emt 0:04:03]} Kxf4 {[%emt 0:00:07]} 49. Nf7 {[%emt 0:00:12] Ke5+ Ke4+} 1/2-1/2

[Event "Portugal Open 2020"]
[Site "Lisbon"]
[Date "2020.02.01"]
[Round "9.29"]
[White "Gahan M G"]
[Black "Saltao, Joao Miguel Ramos"]
[Result "1/2-1/2"]
[ECO "C00"]
[WhiteElo "2245"]
[BlackElo "1912"]
[Annotator "NA"]
[PlyCount "115"]
[EventDate "2020.01.25"]
[EventType "swiss"]
[EventCountry "POR"]
[SourceTitle "playchess.com"]
[Source "ChessBase"]
[SourceQuality "1"]
[TimeControl "5400+30"]

1. e4 {[%emt 0:04:37]} e6 {[%emt 0:00:00]} 2. b3 {[%emt 0:00:32]} d5 {[%emt 0:00:00]} 3. Bb2 {[%emt 0:00:03]} dxe4 {[%emt 0:00:00]} 4. Nc3 {[%emt 0:00:03]} Nf6 {[%emt 0:00:00]} 5. Qe2 {[%emt 0:00:05]} Bd7 {[%emt 0:00:40]} 6. Nxe4 {[%emt 0:00:24]} Nxe4 {[%emt 0:01:17]} 7. Qxe4 {[%emt 0:00:07]} Bc6 {[%emt 0:00:03]} 8. Qe3 {[%emt 0:00:36]} Qd5 {[%emt 0:05:35]} 9. O-O-O {[%emt 0:05:07]} Nd7 {[%emt 0:01:11]} 10. Nf3 {[%emt 0:00:44]} Qa5 {[%emt 0:17:54]} 11. Kb1 {[%emt 0:00:29]} Bxf3 {[%emt 0:06:18]} 12. Qxf3 {[%emt 0:00:13]} c6 {[%emt 0:00:05]} 13. h4 {[%emt 0:02:45]} Rd8 {[%emt 0:12:13]} 14. h5 {[%emt 0:00:41]} h6 {[%emt 0:00:19]} 15. Rh4 {[%emt 0:02:22]} Nf6 {[%emt 0:03:08]} 16. Bxf6 {[%emt 0:00:31]} gxf6 {[%emt 0:00:02]} 17. Qxf6 {[%emt 0:00:39]} Rg8 {[%emt 0:00:10]} 18. Re4 $11 {[%emt 0:07:47]} Qxh5 {[%emt 0:04:04]} 19. Rde1 {[%emt 0:08:11]} Be7 {[%emt 0:01:12]} 20. Qc3 {[%emt 0:00:22]} Qc5 {[%emt 0:03:25]} 21. Qxc5 {[%emt 0:09:12]} Bxc5 {[%emt 0:00:48]} 22. R1e2 {[%emt 0:00:05]} Rd4 {[%emt 0:03:44]} 23. Rxd4 {[%emt 0:00:47]} Bxd4 {[%emt 0:00:05]} 24. c3 {[%emt 0:00:06]} Bb6 {[%emt 0:01:23]} 25. d4 {[%emt 0:00:36]} Ke7 {[%emt 0:00:21]} 26. Re4 {[%emt 0:01:34]} Rg6 {[%emt 0:02:20]} 27. Kc2 {[%emt 0:01:07]} Kd6 {[%emt 0:02:23]} 28. b4 {[%emt 0:01:50]} Bd8 {[%emt 0:04:15]} 29. g3 {[%emt 0:03:07]} h5 {[%emt 0:01:20]} 30. Bd3 {[%emt 0:01:21]} Rh6 {[%emt 0:00:33]} 31. Re3 {[%emt 0:03:25]} Rf6 {[%emt 0:02:05]} 32. Re2 {[%emt 0:01:30]} Rh6 {[%emt 0:00:30]} 33. Re3 {[%emt 0:02:56]} Rf6 {[%emt 0:00:17]} 34. f3 {[%emt 0:02:50]} h4 {[%emt 0:01:18]} 35. gxh4 {[%emt 0:01:26]} Rf4 {[%emt 0:00:08]} 36. h5 {[%emt 0:00:31]} Rh4 {[%emt 0:00:04]} 37. f4 {[%emt 0:01:03]} Rxh5 {[%emt 0:00:32]} 38. Rg3 {[%emt 0:01:45]} Bf6 {[%emt 0:00:11]} 39. Kb3 {[%emt 0:01:43]} b5 {[%emt 0:05:48]} 40. a4 {[%emt 0:01:05]} a6 {[%emt 0:00:01]} 41. Be4 {[%emt 0:01:37]} Rh4 {[%emt 0:01:04]} 42. Rf3 {[%emt 0:00:08]} Bh8 {[%emt 0:02:30]} 43. Rf1 {[%emt 0:01:19]} Rh3 {[%emt 0:01:02]} 44. Bf3 {[%emt 0:01:09]} Bf6 {[%emt 0:00:14]} 45. axb5 {[%emt 0:00:25]} axb5 {[%emt 0:00:01]} 46. Kc2 {[%emt 0:00:42]} Bh4 {[%emt 0:05:11]} 47. Kd3 {[%emt 0:01:46]} f6 {[%emt 0:00:28]} 48. Ke4 {[%emt 0:02:33]} f5+ {[%emt 0:06:13]} 49. Ke3 {[%emt 0:00:10]} Rh2 {[%emt 0:01:55]} 50. Ra1 {[%emt 0:04:05]} Rc2 {[%emt 0:00:06]} 51. Kd3 {[%emt 0:00:27]} Rf2 {[%emt 0:00:15]} 52. Bh1 {[%emt 0:00:51]} Rh2 {[%emt 0:00:03]} 53. Bf3 {[%emt 0:00:45]} Rf2 {[%emt 0:00:01]} 54. Ke3 {[%emt 0:01:16]} Rc2 {[%emt 0:00:16]} 55. Kd3 {[%emt 0:00:58]} Rf2 {[%emt 0:00:02]} 56. Bh5 {[%emt 0:02:07]} Bg3 {[%emt 0:01:59]} 57. Be2 {[%emt 0:02:55]} Bxf4 {[%emt 0:00:25]} 58. Rf1 {[%emt 0:00:46]} 1/2-1/2

[Event "Portugal Open 2020"]
[Site "Lisbon"]
[Date "2020.02.01"]
[Round "9.30"]
[White "Atakay, Mustafa"]
[Black "Corbalan Gomez, Juan Jose"]
[Result "0-1"]
[ECO "A40"]
[WhiteElo "1886"]
[BlackElo "2243"]
[Annotator "NA"]
[PlyCount "108"]
[EventDate "2020.01.25"]
[EventType "swiss"]
[EventCountry "POR"]
[SourceTitle "playchess.com"]
[Source "ChessBase"]
[SourceQuality "1"]
[TimeControl "5400+30"]

1. d4 {[%emt 0:00:00]} Nf6 {[%emt 0:09:54]} 2. c4 {[%emt 0:00:00]} e6 {[%emt 0:00:12]} 3. g3 {[%emt 0:00:00]} c5 {[%emt 0:00:04]} 4. d5 {[%emt 0:00:00]} exd5 {[%emt 0:00:05]} 5. cxd5 {[%emt 0:00:00]} b5 {[%emt 0:00:02]} 6. e4 {[%emt 0:18:15]} Nxe4 {[%emt 0:01:42]} 7. Qe2 {[%emt 0:00:04]} Qe7 {[%emt 0:00:27]} 8. Bg2 {[%emt 0:00:06]} f5 {[%emt 0:14:13]} 9. Be3 {[%emt 0:06:27]} Bb7 {[%emt 0:06:16]} (9... b4 $11) 10. Nc3 {[%emt 0:06:04]} b4 $16 {[%emt 0:12:36]} 11. Nb5 {[%emt 0:04:46]} Kd8 {[%emt 0:09:59]} 12. f3 {[%emt 0:09:29]} Nd6 {[%emt 0:03:33]} 13. Nxd6 {[%emt 0:00:26]} Qxd6 {[%emt 0:00:12]} 14. Bg5+ {[%emt 0:00:07]} Be7 {[%emt 0:00:21]} 15. Bxe7+ {[%emt 0:13:19]} Qxe7 {[%emt 0:00:01]} 16. f4 {[%emt 0:00:15]} Re8 {[%emt 0:01:03]} 17. Qxe7+ {[%emt 0:00:17]} Rxe7+ {[%emt 0:01:41]} 18. Kf2 {[%emt 0:03:35]} d6 {[%emt 0:00:04]} 19. Nf3 {[%emt 0:02:24]} Nd7 {[%emt 0:03:19]} 20. Rhe1 {[%emt 0:06:44]} Nf8 {[%emt 0:00:49]} 21. Ng5 {[%emt 0:02:09]} Rc8 {[%emt 0:15:34]} 22. Bh3 {[%emt 0:01:33]} h6 {[%emt 0:05:14]} 23. Nf3 {[%emt 0:06:23]} g6 {[%emt 0:02:29]} 24. g4 {[%emt 0:00:32]} fxg4 {[%emt 0:00:50]} 25. Bxg4 {[%emt 0:00:05]} Rcc7 {[%emt 0:00:21]} 26. Rad1 {[%emt 0:02:41]} Rxe1 {[%emt 0:01:05]} 27. Nxe1 {[%emt 0:00:18]} Rf7 {[%emt 0:01:06]} 28. Kg3 {[%emt 0:00:24]} a5 {[%emt 0:00:46]} 29. Nc2 {[%emt 0:01:29]} Re7 {[%emt 0:00:26]} 30. h4 {[%emt 0:00:47]} h5 {[%emt 0:00:31]} 31. Bf3 {[%emt 0:00:06]} Bc8 {[%emt 0:01:53]} 32. Kf2 {[%emt 0:00:23]} Rf7 {[%emt 0:01:29]} 33. Kg3 {[%emt 0:00:13]} Rc7 {[%emt 0:00:12]} 34. Ne3 {[%emt 0:01:45]} c4 {[%emt 0:00:40]} 35. f5 {[%emt 0:01:19]} c3 {[%emt 0:00:36]} 36. b3 {[%emt 0:03:55]} a4 {[%emt 0:01:48]} 37. Be4 {[%emt 0:02:06]} gxf5 {[%emt 0:00:33]} 38. Nxf5 {[%emt 0:00:08]} Bxf5 {[%emt 0:00:49]} 39. Bxf5 {[%emt 0:00:04]} axb3 {[%emt 0:01:29]} 40. axb3 {[%emt 0:00:20]} Nd7 {[%emt 0:00:30]} 41. Kf4 {[%emt 0:01:20]} Nc5 {[%emt 0:00:30]} 42. Rd4 {[%emt 0:01:56]} Rf7 {[%emt 0:01:44]} 43. Kg5 {[%emt 0:01:23]} Nxb3 {[%emt 0:00:52]} 44. Rxb4 {[%emt 0:00:20]} Rxf5+ {[%emt 0:00:10]} 45. Kxf5 {[%emt 0:00:25]} c2 {[%emt 0:00:02]} 46. Rc4 {[%emt 0:00:14]} c1=Q {[%emt 0:00:06]} 47. Rxc1 {[%emt 0:00:04]} Nxc1 {[%emt 0:00:02]} 48. Kg5 {[%emt 0:00:04]} Ke7 {[%emt 0:00:17]} 49. Kxh5 {[%emt 0:00:07]} Kf6 {[%emt 0:00:08]} 50. Kg4 {[%emt 0:00:14]} Ne2 {[%emt 0:00:12]} 51. h5 {[%emt 0:01:22]} Nc3 {[%emt 0:00:08]} 52. h6 {[%emt 0:00:09]} Nxd5 {[%emt 0:00:20]} 53. h7 {[%emt 0:00:05]} Kg7 {[%emt 0:00:05]} 54. Kf5 {[%emt 0:00:05]} Nc7 {[%emt 0:00:07]} 0-1

[Event "Portugal Open 2020"]
[Site "Lisbon"]
[Date "2020.02.01"]
[Round "9.31"]
[White "Hill, Alistair"]
[Black "Xu, Yang"]
[Result "1-0"]
[ECO "E94"]
[WhiteElo "2217"]
[BlackElo "2359"]
[Annotator "NA"]
[PlyCount "93"]
[EventDate "2020.01.25"]
[EventType "swiss"]
[EventCountry "POR"]
[SourceTitle "playchess.com"]
[Source "ChessBase"]
[SourceQuality "1"]
[TimeControl "5400+30"]

1. c4 {[%emt 0:03:26]} g6 {[%emt 0:01:08]} 2. d4 {[%emt 0:00:14]} Bg7 {[%emt 0:00:33]} 3. e4 {[%emt 0:01:03]} d6 {[%emt 0:00:06]} 4. Nf3 {[%emt 0:02:20]} Nd7 {[%emt 0:00:18]} 5. Nc3 {[%emt 0:02:10]} e5 {[%emt 0:00:11]} 6. Be2 {[%emt 0:00:14]} Ngf6 {[%emt 0:01:57]} 7. O-O {[%emt 0:00:23]} O-O {[%emt 0:00:29]} 8. Qc2 {[%emt 0:02:19]} c6 {[%emt 0:10:47]} 9. d5 {[%emt 0:01:34]} c5 {[%emt 0:02:58]} 10. a3 {[%emt 0:00:21]} Nh5 {[%emt 0:01:07]} 11. g3 {[%emt 0:13:20]} Ndf6 {[%emt 0:05:01]} 12. Rb1 {[%emt 0:02:33]} Bh3 {[%emt 0:03:52]} 13. Re1 {[%emt 0:00:37]} h6 {[%emt 0:09:38]} 14. b4 $16 {[%emt 0:03:55]} Nd7 {[%emt 0:01:53]} 15. Kh1 {[%emt 0:09:44]} Bg4 {[%emt 0:07:07]} 16. h3 {[%emt 0:01:16]} Bxf3+ {[%emt 0:04:05]} 17. Bxf3 {[%emt 0:00:02]} Nhf6 {[%emt 0:01:49]} 18. Kg2 {[%emt 0:03:34]} b6 {[%emt 0:01:16]} 19. Be3 {[%emt 0:00:41]} Ne8 {[%emt 0:01:24]} 20. Bg4 {[%emt 0:08:40]} h5 {[%emt 0:11:00]} 21. Be2 {[%emt 0:00:12]} Kh7 {[%emt 0:04:03]} 22. Qd2 {[%emt 0:05:57]} Bf6 {[%emt 0:05:11]} 23. Rb3 {[%emt 0:03:58]} Ng7 {[%emt 0:00:26]} 24. Reb1 {[%emt 0:02:44]} Be7 {[%emt 0:05:57]} 25. f4 {[%emt 0:04:53]} cxb4 {[%emt 0:02:20]} 26. axb4 {[%emt 0:00:15]} f5 {[%emt 0:00:44]} 27. c5 {[%emt 0:03:49]} exf4 {[%emt 0:04:36]} 28. gxf4 {[%emt 0:00:16]} fxe4 {[%emt 0:03:01]} 29. Nxe4 {[%emt 0:00:52]} Nf6 {[%emt 0:04:55]} 30. Ng5+ {[%emt 0:00:35]} Kg8 {[%emt 0:00:12]} 31. c6 {[%emt 0:01:47]} Nh7 {[%emt 0:03:18]} 32. Ne6 {[%emt 0:03:37]} Nxe6 {[%emt 0:00:15]} 33. dxe6 {[%emt 0:00:04]} Rf6 {[%emt 0:01:57]} 34. Bf3 {[%emt 0:00:12]} Qc7 {[%emt 0:00:54]} 35. Bd4 {[%emt 0:02:06]} Raf8 {[%emt 0:00:06]} 36. Bxf6 {[%emt 0:00:11]} Rxf6 {[%emt 0:00:07]} 37. Rg1 {[%emt 0:02:31]} d5 {[%emt 0:00:51]} 38. Kh1 {[%emt 0:01:28]} g5 {[%emt 0:01:47]} 39. Bxd5 {[%emt 0:02:50]} Rxf4 {[%emt 0:00:14]} 40. Rf3 {[%emt 0:01:18]} Rxf3 {[%emt 0:01:38]} 41. Bxf3 {[%emt 0:00:06]} Qe5 {[%emt 0:00:02]} 42. Qd5 {[%emt 0:02:44]} Qc7 {[%emt 0:00:07]} 43. Be4 {[%emt 0:01:19]} Nf6 {[%emt 0:00:25]} 44. Qxg5+ {[%emt 0:00:20]} Kf8 {[%emt 0:00:06]} 45. Qg7+ {[%emt 0:00:08]} Ke8 {[%emt 0:00:07]} 46. Qh8+ {[%emt 0:00:12]} Bf8 {[%emt 0:00:13]} 47. Qxf6 {[%emt 0:00:06]} 1-0

[Event "Portugal Open 2020"]
[Site "Lisbon"]
[Date "2020.02.01"]
[Round "9.32"]
[White "Rodriguez Lopez, Rafael"]
[Black "Botelho, Luis Miguel Rodrigue"]
[Result "1-0"]
[ECO "B36"]
[WhiteElo "2212"]
[BlackElo "1987"]
[Annotator "NA"]
[PlyCount "137"]
[EventDate "2020.01.25"]
[EventType "swiss"]
[EventCountry "POR"]
[SourceTitle "playchess.com"]
[Source "ChessBase"]
[SourceQuality "1"]
[TimeControl "5400+30"]

1. e4 {[%emt 0:00:00]} c5 {[%emt 0:08:53]} 2. Nf3 {[%emt 0:00:00]} g6 {[%emt 0:00:57]} 3. d4 {[%emt 0:00:06]} cxd4 {[%emt 0:00:05]} 4. Nxd4 {[%emt 0:00:04]} Nc6 {[%emt 0:00:06]} 5. c4 {[%emt 0:00:08]} Nf6 {[%emt 0:00:06]} 6. Nc3 {[%emt 0:00:06]} d6 {[%emt 0:00:03]} 7. f3 {[%emt 0:00:18]} Nxd4 {[%emt 0:00:37]} 8. Qxd4 {[%emt 0:00:05]} Bg7 {[%emt 0:00:06]} 9. Be3 {[%emt 0:00:05]} O-O {[%emt 0:00:09]} 10. Qd2 {[%emt 0:00:04]} Be6 {[%emt 0:02:30]} 11. Rc1 {[%emt 0:00:08]} Qa5 {[%emt 0:01:25]} 12. Be2 {[%emt 0:00:24]} Rfc8 {[%emt 0:00:09]} 13. b3 {[%emt 0:00:06] [#]} Qb4 $146 {[%emt 0:04:40] B36: Sicilian: Maroczy Bind: Gurgenidze System} ({Predecessor:} 13... a6 14. Na4 Qxd2+ 15. Kxd2 Nd7 16. g4 Rcb8 17. Nc3 {½-½ (17) Dominguez Perez,L (2758)-Duda,J (2758) Moscow 2019}) 14. g4 {[%emt 0:04:02]} Nd7 {[%emt 0:00:59]} 15. Nd5 {[%emt 0:00:28]} Qxd2+ {[%emt 0:00:38]} 16. Kxd2 {[%emt 0:00:05]} Kf8 {[%emt 0:01:01]} 17. Rhd1 {[%emt 0:06:17]} a5 {[%emt 0:00:39]} 18. Ke1 {[%emt 0:00:52]} Rc6 {[%emt 0:03:11]} 19. h3 {[%emt 0:00:33]} Nc5 {[%emt 0:00:43]} 20. Rb1 {[%emt 0:03:04]} Na6 {[%emt 0:01:23]} 21. a3 {[%emt 0:01:46]} Bxd5 {[%emt 0:01:58]} 22. exd5 {[%emt 0:00:33]} Rcc8 {[%emt 0:00:14]} 23. Kf1 {[%emt 0:03:59]} Nc5 {[%emt 0:00:23]} 24. Rd2 {[%emt 0:02:23]} a4 {[%emt 0:01:00]} 25. b4 {[%emt 0:00:35]} Nb3 {[%emt 0:00:08]} 26. Rdd1 {[%emt 0:00:26]} Ke8 {[%emt 0:04:43]} 27. Kf2 {[%emt 0:00:17]} Kd7 {[%emt 0:01:44]} 28. Bb6 $14 {[%emt 0:00:42]} Ra6 {[%emt 0:12:17]} 29. c5 {[%emt 0:04:35]} Rxb6 {[%emt 0:00:05]} 30. cxb6 {[%emt 0:00:08]} Rc2 {[%emt 0:00:07]} 31. Kf1 {[%emt 0:03:01]} Nd2+ {[%emt 0:02:19]} 32. Rxd2 {[%emt 0:00:08]} Rxd2 {[%emt 0:00:05]} 33. Bb5+ {[%emt 0:00:07]} Kd8 {[%emt 0:00:16]} 34. Rc1 {[%emt 0:04:20]} Rxd5 {[%emt 0:01:59]} 35. Bxa4 {[%emt 0:03:53]} Bd4 {[%emt 0:18:14]} 36. Rc7 {[%emt 0:01:28]} Bxb6 {[%emt 0:00:24]} 37. Rxb7 {[%emt 0:00:09]} Bc7 {[%emt 0:00:16]} 38. Ra7 {[%emt 0:01:39]} Bb6 {[%emt 0:02:23]} 39. Rd7+ {[%emt 0:00:59]} Kc8 {[%emt 0:00:13]} 40. Rxe7 {[%emt 0:00:10]} Rd3 {[%emt 0:00:13]} 41. Rxf7 {[%emt 0:00:19]} Rxa3 {[%emt 0:00:12]} 42. Bc6 {[%emt 0:00:26]} Ra7 {[%emt 0:02:38]} 43. Rxa7 {[%emt 0:03:12]} Bxa7 {[%emt 0:00:06]} 44. Ke2 {[%emt 0:00:10]} Kc7 {[%emt 0:00:40]} 45. Bd5 {[%emt 0:01:54]} Kd7 {[%emt 0:04:06]} 46. Kd3 {[%emt 0:00:26]} Ke7 {[%emt 0:00:24]} 47. g5 {[%emt 0:01:15]} Bf2 {[%emt 0:01:27]} 48. f4 {[%emt 0:00:32]} Kf8 {[%emt 0:00:40]} 49. Ke4 {[%emt 0:00:36]} Kg7 {[%emt 0:00:26]} 50. b5 {[%emt 0:00:51]} Ba7 {[%emt 0:17:45]} 51. Kf3 {[%emt 0:00:16]} Bb6 {[%emt 0:00:26]} 52. Kg4 {[%emt 0:00:09]} Ba7 {[%emt 0:00:51]} 53. h4 {[%emt 0:00:09]} Be3 {[%emt 0:01:59]} 54. Be6 {[%emt 0:01:48]} Kh8 {[%emt 0:00:48]} 55. Kf3 {[%emt 0:00:40]} Bc5 {[%emt 0:00:36]} 56. Bg4 {[%emt 0:00:59]} Kg7 {[%emt 0:03:42]} 57. Bd7 {[%emt 0:01:49]} Kf7 {[%emt 0:01:13]} 58. Kg4 {[%emt 0:00:35]} Ke7 {[%emt 0:00:32]} 59. Bc6 {[%emt 0:00:56]} Ke6 {[%emt 0:00:11]} 60. Be4 {[%emt 0:00:10]} Kf7 {[%emt 0:01:29]} 61. h5 {[%emt 0:01:07]} Kg7 {[%emt 0:01:34]} 62. hxg6 {[%emt 0:01:24]} hxg6 {[%emt 0:00:09]} 63. f5 {[%emt 0:00:07]} gxf5+ {[%emt 0:00:22]} 64. Kxf5 {[%emt 0:00:05]} Kf7 {[%emt 0:01:06]} 65. g6+ {[%emt 0:00:09]} Ke7 {[%emt 0:00:25]} 66. Bd5 {[%emt 0:00:15]} Bd4 {[%emt 0:00:24]} 67. b6 {[%emt 0:00:21]} Kd7 {[%emt 0:00:49]} 68. b7 {[%emt 0:00:13]} Kc7 {[%emt 0:00:43]} 69. Ke6 {[%emt 0:00:06]} 1-0